{"text_format":"1","workbook":"xlsx","n_sheets":7,"sheets":["Sample Datasheet","Index","Output Text","Highlight_Cell","Color Code","Change Color","RGB"],"not_rendered":{"charts":0,"images":0,"macros":1,"external_links":0,"defined_names":0,"comments":0,"pivot_tables":0},"unopened":[],"bounds":{"document_bytes":16777216,"sheet_cells":100000,"rows_first":2000,"rows_last":500,"rows_between":2000,"halvings":0,"cell_chars":16384,"cell_head_chars":4096},"cells_cut":0,"cells_raw":0,"read":"whole","date_system":"1900"}

{"sheet":"Sample Datasheet","index":0,"n_rows":15,"n_cols":9,"rows_kept":15,"cut":false,"hidden":false,"merged":[[2,1,2,3]]}
[]
[]
[null,"Employee Details"]
[]
[null,"Name","Age","Return Value"]
[null,"Mark",20]
[null,"Alexis",21]
[null,"Frodo",25]
[null,"Mike",23]
[null,"Bryan",19]
[null,"Alicia",24]
[null,"Henry",30]
[null,"Ben",26]
[null,"Cavill",22]
[null,"Bob",25,null,null,null,null,null," "]

{"sheet":"Index","index":1,"n_rows":15,"n_cols":9,"rows_kept":15,"cut":false,"hidden":false,"merged":[[2,1,2,3],[2,5,2,7]]}
[]
[]
[null,"Employee Details",null,null,null,"For Practice"]
[]
[null,"Name","Age","Return Value",null,"Name","Age","Return Value"]
[null,"Mark",20,{"$f":"IndexCol(C6)","v":0},null,"Mark",20]
[null,"Alexis",21,{"$f":"IndexCol(C7)","v":0},null,"Alexis",21]
[null,"Frodo",25,{"$f":"IndexCol(C8)","v":255},null,"Frodo",25]
[null,"Mike",23,{"$f":"IndexCol(C9)","v":0},null,"Mike",23]
[null,"Bryan",19,{"$f":"IndexCol(C10)","v":0},null,"Bryan",19]
[null,"Alicia",24,{"$f":"IndexCol(C11)","v":255},null,"Alicia",24]
[null,"Henry",30,{"$f":"IndexCol(C12)","v":0},null,"Henry",30]
[null,"Ben",26,{"$f":"IndexCol(C13)","v":255},null,"Ben",26]
[null,"Cavill",22,{"$f":"IndexCol(C14)","v":0},null,"Cavill",22]
[null,"Bob",25,{"$f":"IndexCol(C15)","v":255},null,"Bob",25,null," "]

{"sheet":"Output Text","index":2,"n_rows":15,"n_cols":9,"rows_kept":15,"cut":false,"hidden":false,"merged":[[2,1,2,3],[2,5,2,7]]}
[]
[]
[null,"Employee Details",null,null,null,"For Practice"]
[]
[null,"Name","Age","Return Value",null,"Name","Age","Return Value"]
[null,"Mark",20,{"$f":"FontRed(C6)","v":"Not Red"},null,"Mark",20]
[null,"Alexis",21,{"$f":"FontRed(C7)","v":"Not Red"},null,"Alexis",21]
[null,"Frodo",25,{"$f":"FontRed(C8)","v":"Red"},null,"Frodo",25]
[null,"Mike",23,{"$f":"FontRed(C9)","v":"Not Red"},null,"Mike",23]
[null,"Bryan",19,{"$f":"FontRed(C10)","v":"Not Red"},null,"Bryan",19]
[null,"Alicia",24,{"$f":"FontRed(C11)","v":"Red"},null,"Alicia",24]
[null,"Henry",30,{"$f":"FontRed(C12)","v":"Not Red"},null,"Henry",30]
[null,"Ben",26,{"$f":"FontRed(C13)","v":"Red"},null,"Ben",26]
[null,"Cavill",22,{"$f":"FontRed(C14)","v":"Not Red"},null,"Cavill",22]
[null,"Bob",25,{"$f":"FontRed(C15)","v":"Red"},null,"Bob",25,null," "]

{"sheet":"Highlight_Cell","index":3,"n_rows":15,"n_cols":7,"rows_kept":15,"cut":false,"hidden":false,"merged":[[2,1,2,2],[2,5,2,6]]}
[]
[]
[null,"Employee Details",null,null,null,"For Practice"]
[]
[null,"Name","Age",null,"        ","Name","Age"]
[null,"Mark",20,null,null,"Mark",20]
[null,"Alexis",21,null,null,"Alexis",21]
[null,"Frodo",25,null,null,"Frodo",25]
[null,"Mike",23,null,null,"Mike",23]
[null,"Bryan",19,null,null,"Bryan",19]
[null,"Alicia",24,null,null,"Alicia",24]
[null,"Henry",30,null,null,"Henry",30]
[null,"Ben",26,null,null,"Ben",26]
[null,"Cavill",22,null,null,"Cavill",22]
[null,"Bob",25,null,null,"Bob",25]

{"sheet":"Color Code","index":4,"n_rows":15,"n_cols":9,"rows_kept":15,"cut":false,"hidden":false,"merged":[[2,1,2,3],[2,5,2,7]]}
[]
[]
[null,"Employee Details",null,null,null,"For Practice"]
[]
[null,"Name","Age","Return Value",null,"Name","Age","Return Value"]
[null,"Mark",20,{"$f":"Color_Code(C6)","v":1},null,"Mark",20]
[null,"Alexis",21,{"$f":"Color_Code(C7)","v":1},null,"Alexis",21]
[null,"Frodo",25,{"$f":"Color_Code(C8)","v":3},null,"Frodo",25]
[null,"Mike",23,{"$f":"Color_Code(C9)","v":1},null,"Mike",23]
[null,"Bryan",19,{"$f":"Color_Code(C10)","v":1},null,"Bryan",19]
[null,"Alicia",24,{"$f":"Color_Code(C11)","v":3},null,"Alicia",24]
[null,"Henry",30,{"$f":"Color_Code(C12)","v":1},null,"Henry",30]
[null,"Ben",26,{"$f":"Color_Code(C13)","v":3},null,"Ben",26]
[null,"Cavill",22,{"$f":"Color_Code(C14)","v":1},null,"Cavill",22]
[null,"Bob",25,{"$f":"Color_Code(C15)","v":3},null,"Bob",25,null," "]

{"sheet":"Change Color","index":5,"n_rows":15,"n_cols":8,"rows_kept":15,"cut":false,"hidden":false,"merged":[[2,1,2,2],[2,4,2,5]]}
[]
[]
[null,"Employee Details",null,null,"For Practice"]
[]
[null,"Name","Age",null,"Name","Age"]
[null,"Mark",20,null,"Mark",20]
[null,"Alexis",21,null,"Alexis",21]
[null,"Frodo",25,null,"Frodo",25]
[null,"Mike",23,null,"Mike",23]
[null,"Bryan",19,null,"Bryan",19]
[null,"Alicia",24,null,"Alicia",24]
[null,"Henry",30,null,"Henry",30]
[null,"Ben",26,null,"Ben",26]
[null,"Cavill",22,null,"Cavill",22]
[null,"Bob",25,null,"Bob",25,null," "]

{"sheet":"RGB","index":6,"n_rows":15,"n_cols":9,"rows_kept":15,"cut":false,"hidden":false,"merged":[[2,1,2,3],[2,5,2,7]]}
[]
[]
[null,"Employee Details",null,null,null,"For Practice"]
[]
[null,"Name","Age","Return Value",null,"Name","Age","Return Value"]
[null,"Mark",20,{"$f":"RGB(C6)","v":"0, 0, 0"},null,"Mark",20]
[null,"Alexis",21,{"$f":"RGB(C7)","v":"0, 0, 0"},null,"Alexis",21]
[null,"Frodo",25,{"$f":"RGB(C8)","v":"255, 0, 0"},null,"Frodo",25]
[null,"Mike",23,{"$f":"RGB(C9)","v":"0, 0, 0"},null,"Mike",23]
[null,"Bryan",19,{"$f":"RGB(C10)","v":"0, 0, 0"},null,"Bryan",19]
[null,"Alicia",24,{"$f":"RGB(C11)","v":"255, 0, 0"},null,"Alicia",24]
[null,"Henry",30,{"$f":"RGB(C12)","v":"0, 0, 0"},null,"Henry",30]
[null,"Ben",26,{"$f":"RGB(C13)","v":"255, 0, 0"},null,"Ben",26]
[null,"Cavill",22,{"$f":"RGB(C14)","v":"0, 0, 0"},null,"Cavill",22]
[null,"Bob",25,{"$f":"RGB(C15)","v":"255, 0, 0"},null,"Bob",25,null," "]